[Event "Titled Tuesday Blitz April 25 Late 2023"]
[White "Golubev, Mikhail"]
[Black "Vlassov, Nikolai"]
[WhiteFideId "14100983"]
[BlackFideId "4103360"]
[WhiteElo "2374"]
[BlackElo "2324"]
[Result "1-0"]
[Round "11"]
[TimeControl "180+2"]
[Date "2023.04.25"]
[WhiteClock "0:00:23"]
[BlackClock "0:00:12"]

1. e4 {[%clk 0:03:00]}  Nc6 {[%clk 0:02:56]} 2. Nf3 {[%clk 0:03:00]}  d5 {[%clk 0:02:56]} 3. exd5 {[%clk 0:02:59]}  Qxd5 {[%clk 0:02:56]} 4. c4 {[%clk 0:02:50]}  Qh5 {[%clk 0:02:47]} 5. d4 {[%clk 0:02:44]}  Bg4 {[%clk 0:02:44]} 6. Be2 {[%clk 0:02:44]}  O-O-O {[%clk 0:02:44]} 7. O-O {[%clk 0:02:28]}  Nf6 {[%clk 0:02:29]} 8. d5 {[%clk 0:02:07]}  e6 {[%clk 0:02:28]} 9. h3 {[%clk 0:01:55]}  exd5 {[%clk 0:02:18]} 10. hxg4 {[%clk 0:01:47]}  Nxg4 {[%clk 0:02:17]} 11. Bf4 {[%clk 0:01:38]}  dxc4 {[%clk 0:02:12]} 12. Nh2 {[%clk 0:01:11]}  Rxd1 {[%clk 0:01:36]} 13. Bxg4+ {[%clk 0:01:11]}  Qxg4 {[%clk 0:01:35]} 14. Nxg4 {[%clk 0:01:12]}  Rd4 {[%clk 0:01:34]} 15. g3 {[%clk 0:01:07]}  g5 {[%clk 0:01:26]} 16. Be5 {[%clk 0:00:41]}  Nxe5 {[%clk 0:01:04]} 17. Nxe5 {[%clk 0:00:42]}  Bg7 {[%clk 0:00:40]} 18. Nxf7 {[%clk 0:00:35]}  Re8 {[%clk 0:00:22]} 19. Nc3 {[%clk 0:00:32]}  h6 {[%clk 0:00:20]} 20. Rfe1 {[%clk 0:00:26]}  Rxe1+ {[%clk 0:00:14]} 21. Rxe1 {[%clk 0:00:27]}  Rd2 {[%clk 0:00:13]} 22. Re8+ {[%clk 0:00:23]}  Kd7 {[%clk 0:00:13]} 23. Rd8+ {[%clk 0:00:24]}  Ke7 {[%clk 0:00:12]} 24. Rxd2 {[%clk 0:00:25]}  Kxf7 {[%clk 0:00:12]} 25. Rd7+ {[%clk 0:00:25]}  Kf8 {[%clk 0:00:11]} 26. Rxc7 {[%clk 0:00:24]}  b5 {[%clk 0:00:12]} 27. Nxb5 {[%clk 0:00:23]} 1-0


[Site "https://www.chess.com"]

[Event "Titled Tuesday Blitz April 25 Late 2023"]
[White "Mickiewicz, Piotr"]
[Black "Ladan, Nicholas"]
[WhiteFideId "1114891"]
[BlackFideId "30918855"]
[WhiteElo "2246"]
[BlackElo "2167"]
[Result "0-1"]
[Round "11"]
[TimeControl "180+2"]
[Date "2023.04.25"]
[WhiteClock "0:00:02"]
[BlackClock "0:00:06"]

1. Nf3 {[%clk 0:03:00]}  d5 {[%clk 0:02:56]} 2. e3 {[%clk 0:03:00]}  c5 {[%clk 0:02:55]} 3. Bb5+ {[%clk 0:02:59]}  Bd7 {[%clk 0:02:54]} 4. a4 {[%clk 0:02:57]}  Nf6 {[%clk 0:02:54]} 5. Bxd7+ {[%clk 0:02:50]}  Qxd7 {[%clk 0:02:53]} 6. Qe2 {[%clk 0:02:51]}  Nc6 {[%clk 0:02:53]} 7. d3 {[%clk 0:02:50]}  g6 {[%clk 0:02:53]} 8. e4 {[%clk 0:02:47]}  Bg7 {[%clk 0:02:50]} 9. O-O {[%clk 0:02:43]}  O-O {[%clk 0:02:49]} 10. e5 {[%clk 0:02:39]}  Ng4 {[%clk 0:02:39]} 11. Bf4 {[%clk 0:02:39]}  Qf5 {[%clk 0:02:39]} 12. Bg3 {[%clk 0:02:36]}  Ngxe5 {[%clk 0:02:38]} 13. Nxe5 {[%clk 0:02:28]}  Nxe5 {[%clk 0:02:37]} 14. Nc3 {[%clk 0:02:26]}  e6 {[%clk 0:02:34]} 15. a5 {[%clk 0:02:18]}  Nc6 {[%clk 0:02:21]} 16. a6 {[%clk 0:02:16]}  b6 {[%clk 0:02:11]} 17. Rfe1 {[%clk 0:02:08]}  h5 {[%clk 0:01:56]} 18. h3 {[%clk 0:02:03]}  Rfe8 {[%clk 0:01:51]} 19. Qd2 {[%clk 0:01:49]}  Nd4 {[%clk 0:01:50]} 20. Ra2 {[%clk 0:01:44]}  b5 {[%clk 0:01:32]} 21. Ne2 {[%clk 0:01:41]}  Nxe2+ {[%clk 0:01:27]} 22. Rxe2 {[%clk 0:01:24]}  c4 {[%clk 0:01:26]} 23. d4 {[%clk 0:01:20]}  e5 {[%clk 0:01:03]} 24. dxe5 {[%clk 0:01:17]}  Bxe5 {[%clk 0:01:03]} 25. Bxe5 {[%clk 0:00:32]}  Rxe5 {[%clk 0:01:04]} 26. Rxe5 {[%clk 0:00:30]}  Qxe5 {[%clk 0:01:05]} 27. c3 {[%clk 0:00:30]}  Rd8 {[%clk 0:00:58]} 28. Ra5 {[%clk 0:00:29]}  d4 {[%clk 0:00:58]} 29. cxd4 {[%clk 0:00:29]}  Rxd4 {[%clk 0:00:54]} 30. Rxb5 {[%clk 0:00:28]}  Qxb5 {[%clk 0:00:55]} 31. Qxd4 {[%clk 0:00:27]}  Qxa6 {[%clk 0:00:56]} 32. h4 {[%clk 0:00:25]}  Qa4 {[%clk 0:00:52]} 33. g4 {[%clk 0:00:18]}  hxg4 {[%clk 0:00:46]} 34. Qxg4 {[%clk 0:00:19]}  Qb5 {[%clk 0:00:44]} 35. Qd4 {[%clk 0:00:19]}  a5 {[%clk 0:00:40]} 36. Kh2 {[%clk 0:00:18]}  a4 {[%clk 0:00:34]} 37. Kg3 {[%clk 0:00:18]}  Qb3+ {[%clk 0:00:27]} 38. f3 {[%clk 0:00:17]}  c3 {[%clk 0:00:27]} 39. bxc3 {[%clk 0:00:18]}  a3 {[%clk 0:00:27]} 40. h5 {[%clk 0:00:19]}  a2 {[%clk 0:00:18]} 41. h6 {[%clk 0:00:19]}  Qb8+ {[%clk 0:00:15]} 42. f4 {[%clk 0:00:19]}  Qf8 {[%clk 0:00:15]} 43. Qa4 {[%clk 0:00:13]}  Qc5 {[%clk 0:00:05]} 44. Qe8+ {[%clk 0:00:05]}  Kh7 {[%clk 0:00:05]} 45. Qxf7+ {[%clk 0:00:03]}  Kxh6 {[%clk 0:00:05]} 46. Qg8 {[%clk 0:00:03]}  Qxc3+ {[%clk 0:00:05]} 47. Kg4 {[%clk 0:00:03]}  a1=Q {[%clk 0:00:04]} 48. Qf8+ {[%clk 0:00:01]}  Qg7 {[%clk 0:00:05]} 49. Qd8 {[%clk 0:00:01]}  Qg1+ {[%clk 0:00:04]} 50. Kh4 {[%clk 0:00:01]}  Qh2+ {[%clk 0:00:04]} 51. Kg4 {[%clk 0:00:02]}  Qh5+ {[%clk 0:00:05]} 52. Kg3 {[%clk 0:00:02]}  Qc3+ {[%clk 0:00:05]} 53. Kf2 {[%clk 0:00:02]}  Qhc5+ {[%clk 0:00:04]} 54. Kf1 {[%clk 0:00:03]}  Q5c4+ {[%clk 0:00:04]} 55. Kg1 {[%clk 0:00:03]}  Q4d4+ {[%clk 0:00:05]} 56. Kh1 {[%clk 0:00:04]}  Qxd8 {[%clk 0:00:04]} 57. f5 {[%clk 0:00:03]}  Qdd2 {[%clk 0:00:05]} 58. fxg6 {[%clk 0:00:02]}  Qcc1# {[%clk 0:00:06]} 0-1


[Site "https://www.chess.com"]

[Event "Titled Tuesday Blitz April 25 Late 2023"]
[White "Musovic, Armin"]
[Black "Gerbelli Neto, Eduardo"]
[WhiteFideId "939935"]
[BlackFideId "2103281"]
[WhiteElo "2322"]
[BlackElo "2178"]
[Result "0-1"]
[Round "11"]
[TimeControl "180+2"]
[Date "2023.04.25"]
[WhiteClock "0:00:09"]
[BlackClock "0:00:51"]

1. e4 {[%clk 0:03:00]}  e5 {[%clk 0:02:58]} 2. Nf3 {[%clk 0:02:59]}  Nc6 {[%clk 0:02:58]} 3. Nc3 {[%clk 0:02:58]}  Nf6 {[%clk 0:02:57]} 4. a3 {[%clk 0:02:59]}  d5 {[%clk 0:02:50]} 5. Bb5 {[%clk 0:02:58]}  Nxe4 {[%clk 0:02:40]} 6. Qe2 {[%clk 0:02:57]}  Nxc3 {[%clk 0:02:39]} 7. Qxe5+ {[%clk 0:02:56]}  Qe7 {[%clk 0:02:39]} 8. dxc3 {[%clk 0:02:50]}  a6 {[%clk 0:02:34]} 9. Bxc6+ {[%clk 0:02:41]}  bxc6 {[%clk 0:02:35]} 10. Bf4 {[%clk 0:02:39]}  Qxe5+ {[%clk 0:02:33]} 11. Bxe5 {[%clk 0:02:38]}  Bf5 {[%clk 0:02:28]} 12. Nd4 {[%clk 0:02:20]}  Bg6 {[%clk 0:02:24]} 13. Nxc6 {[%clk 0:02:04]}  Kd7 {[%clk 0:02:24]} 14. Nd4 {[%clk 0:01:57]}  Re8 {[%clk 0:02:23]} 15. f4 {[%clk 0:01:54]}  f6 {[%clk 0:02:23]} 16. Nf3 {[%clk 0:01:45]}  Bd6 {[%clk 0:02:20]} 17. O-O-O {[%clk 0:01:42]}  fxe5 {[%clk 0:02:20]} 18. fxe5 {[%clk 0:01:42]}  Bxe5 {[%clk 0:02:08]} 19. Rxd5+ {[%clk 0:01:42]}  Bd6 {[%clk 0:02:09]} 20. Rhd1 {[%clk 0:01:42]}  Kc6 {[%clk 0:02:07]} 21. b4 {[%clk 0:01:28]}  Kb7 {[%clk 0:02:05]} 22. c4 {[%clk 0:01:19]}  Be4 {[%clk 0:02:00]} 23. R5d4 {[%clk 0:01:09]}  Bf4+ {[%clk 0:01:36]} 24. Kb1 {[%clk 0:01:06]}  Bxf3 {[%clk 0:01:29]} 25. gxf3 {[%clk 0:01:07]}  Be5 {[%clk 0:01:28]} 26. Rd7 {[%clk 0:01:03]}  Rhf8 {[%clk 0:01:27]} 27. Re1 {[%clk 0:00:59]}  Bf6 {[%clk 0:01:20]} 28. Red1 {[%clk 0:00:40]}  Rd8 {[%clk 0:01:20]} 29. c5 {[%clk 0:00:32]}  Kc6 {[%clk 0:01:14]} 30. R7d3 {[%clk 0:00:24]}  Rxd3 {[%clk 0:01:14]} 31. cxd3 {[%clk 0:00:25]}  Be5 {[%clk 0:01:09]} 32. Rf1 {[%clk 0:00:21]}  Kd5 {[%clk 0:01:08]} 33. Kc2 {[%clk 0:00:21]}  Rf6 {[%clk 0:01:05]} 34. a4 {[%clk 0:00:19]}  Bxh2 {[%clk 0:01:05]} 35. Kb3 {[%clk 0:00:18]}  Be5 {[%clk 0:01:04]} 36. Rh1 {[%clk 0:00:11]}  Rh6 {[%clk 0:01:00]} 37. Rg1 {[%clk 0:00:10]}  Rh2 {[%clk 0:01:00]} 38. a5 {[%clk 0:00:08]}  Rb2+ {[%clk 0:00:59]} 39. Ka4 {[%clk 0:00:08]}  Ra2+ {[%clk 0:00:59]} 40. Kb3 {[%clk 0:00:08]}  Rd2 {[%clk 0:00:59]} 41. Rg4 {[%clk 0:00:07]}  Rxd3+ {[%clk 0:00:58]} 42. Ka4 {[%clk 0:00:08]}  c6 {[%clk 0:00:57]} 43. f4 {[%clk 0:00:07]}  Bb2 {[%clk 0:00:55]} 44. b5 {[%clk 0:00:08]}  axb5+ {[%clk 0:00:54]} 45. Kb4 {[%clk 0:00:09]}  Ba3# {[%clk 0:00:51]} 0-1


[Site "https://www.chess.com"]

[Event "Titled Tuesday Blitz April 25 Late 2023"]
[White "Degtiarev, Evgeny"]
[Black "Karamsetty, Jeevan"]
[WhiteFideId "4149610"]
[BlackFideId "2025337"]
[WhiteElo "2284"]
[BlackElo "2111"]
[Result "0-1"]
[Round "11"]
[TimeControl "180+2"]
[Date "2023.04.25"]
[WhiteClock "0:00:01"]
[BlackClock "0:00:04"]

1. d4 {[%clk 0:03:00]}  g6 {[%clk 0:02:56]} 2. c4 {[%clk 0:03:01]}  Bg7 {[%clk 0:02:55]} 3. Nc3 {[%clk 0:03:02]}  d6 {[%clk 0:02:55]} 4. e4 {[%clk 0:03:01]}  e5 {[%clk 0:02:56]} 5. d5 {[%clk 0:03:00]}  a5 {[%clk 0:02:56]} 6. h4 {[%clk 0:02:59]}  f5 {[%clk 0:02:55]} 7. h5 {[%clk 0:02:59]}  Nf6 {[%clk 0:02:51]} 8. h6 {[%clk 0:02:58]}  Bf8 {[%clk 0:02:52]} 9. Bg5 {[%clk 0:02:57]}  Na6 {[%clk 0:02:49]} 10. Nge2 {[%clk 0:02:51]}  Nc5 {[%clk 0:02:44]} 11. Ng3 {[%clk 0:02:41]}  f4 {[%clk 0:02:29]} 12. Nge2 {[%clk 0:02:40]}  Be7 {[%clk 0:02:28]} 13. Qc2 {[%clk 0:02:22]}  Nxd5 {[%clk 0:02:24]} 14. Nxd5 {[%clk 0:02:19]}  Bxg5 {[%clk 0:02:24]} 15. Nec3 {[%clk 0:02:14]}  c6 {[%clk 0:02:09]} 16. b4 {[%clk 0:02:14]}  axb4 {[%clk 0:01:54]} 17. Nxb4 {[%clk 0:02:14]}  Qa5 {[%clk 0:01:54]} 18. Rb1 {[%clk 0:01:53]}  f3 {[%clk 0:01:50]} 19. gxf3 {[%clk 0:01:46]}  O-O {[%clk 0:01:50]} 20. Be2 {[%clk 0:01:42]}  Be6 {[%clk 0:01:46]} 21. Kf1 {[%clk 0:01:41]}  Rf7 {[%clk 0:01:44]} 22. Kg2 {[%clk 0:01:13]}  Raf8 {[%clk 0:01:43]} 23. Nd3 {[%clk 0:01:05]}  Bxc4 {[%clk 0:01:27]} 24. Nxe5 {[%clk 0:01:05]}  Bxe2 {[%clk 0:01:27]} 25. Nxf7 {[%clk 0:01:05]}  Bxf3+ {[%clk 0:01:19]} 26. Kxf3 {[%clk 0:01:02]}  Rxf7+ {[%clk 0:01:20]} 27. Kg2 {[%clk 0:01:01]}  Bf6 {[%clk 0:01:12]} 28. Ne2 {[%clk 0:00:56]}  Be5 {[%clk 0:01:05]} 29. Rh3 {[%clk 0:00:52]}  Qd8 {[%clk 0:01:03]} 30. f4 {[%clk 0:00:46]}  Bxf4 {[%clk 0:01:00]} 31. Nxf4 {[%clk 0:00:45]}  Qg5+ {[%clk 0:01:00]} 32. Rg3 {[%clk 0:00:38]}  Qxf4 {[%clk 0:01:00]} 33. Re1 {[%clk 0:00:18]}  Qxh6 {[%clk 0:00:54]} 34. e5 {[%clk 0:00:17]}  Qf4 {[%clk 0:00:38]} 35. exd6 {[%clk 0:00:12]}  Qxd6 {[%clk 0:00:35]} 36. Re8+ {[%clk 0:00:11]}  Kg7 {[%clk 0:00:36]} 37. Qc3+ {[%clk 0:00:11]}  Qf6 {[%clk 0:00:20]} 38. Qxf6+ {[%clk 0:00:05]}  Rxf6 {[%clk 0:00:21]} 39. Re7+ {[%clk 0:00:05]}  Rf7 {[%clk 0:00:19]} 40. Rge3 {[%clk 0:00:05]}  h6 {[%clk 0:00:07]} 41. Rxf7+ {[%clk 0:00:05]}  Kxf7 {[%clk 0:00:07]} 42. Rc3 {[%clk 0:00:05]}  b6 {[%clk 0:00:07]} 43. Rc4 {[%clk 0:00:04]}  Kf6 {[%clk 0:00:07]} 44. Kf3 {[%clk 0:00:04]}  g5 {[%clk 0:00:07]} 45. Rd4 {[%clk 0:00:03]}  Ke5 {[%clk 0:00:07]} 46. Rd8 {[%clk 0:00:03]}  h5 {[%clk 0:00:06]} 47. Rg8 {[%clk 0:00:02]}  Kf5 {[%clk 0:00:06]} 48. Rc8 {[%clk 0:00:02]}  g4+ {[%clk 0:00:06]} 49. Kg2 {[%clk 0:00:01]}  h4 {[%clk 0:00:04]} 50. Rxc6 {[%clk 0:00:02]}  Kf4 {[%clk 0:00:04]} 51. Rf6+ {[%clk 0:00:02]}  Kg5 {[%clk 0:00:04]} 52. Rxb6 {[%clk 0:00:01]}  Ne4 {[%clk 0:00:04]} 53. Rb5+ {[%clk 0:00:01]}  Kf4 {[%clk 0:00:04]} 0-1


[Site "https://www.chess.com"]

[Event "Titled Tuesday Blitz April 25 Late 2023"]
[White "Liu, Eric"]
[Black "Novikova, Galina"]
[WhiteFideId "30960240"]
[BlackFideId "4157095"]
[WhiteElo "2094"]
[BlackElo "1953"]
[Result "1-0"]
[Round "11"]
[TimeControl "180+2"]
[Date "2023.04.25"]
[WhiteClock "0:01:53"]
[BlackClock "0:00:06"]

1. b3 {[%clk 0:03:00]}  g6 {[%clk 0:02:54]} 2. Bb2 {[%clk 0:03:01]}  Nf6 {[%clk 0:02:55]} 3. e3 {[%clk 0:03:02]}  Bg7 {[%clk 0:02:55]} 4. h4 {[%clk 0:03:03]}  d5 {[%clk 0:02:49]} 5. Qc1 {[%clk 0:03:03]}  Nc6 {[%clk 0:02:46]} 6. h5 {[%clk 0:03:03]}  Bf5 {[%clk 0:02:32]} 7. h6 {[%clk 0:03:03]}  Bf8 {[%clk 0:02:32]} 8. c4 {[%clk 0:03:02]}  Qd7 {[%clk 0:02:26]} 9. Nf3 {[%clk 0:03:01]}  O-O-O {[%clk 0:02:24]} 10. c5 {[%clk 0:03:02]}  Rg8 {[%clk 0:02:10]} 11. Bb5 {[%clk 0:03:02]}  Qe6 {[%clk 0:02:01]} 12. Ng5 {[%clk 0:03:02]}  Qd7 {[%clk 0:01:56]} 13. Nxf7 {[%clk 0:03:02]}  Re8 {[%clk 0:01:38]} 14. Ne5 {[%clk 0:03:02]}  Qe6 {[%clk 0:01:39]} 15. Nxc6 {[%clk 0:03:00]}  bxc6 {[%clk 0:01:39]} 16. Ba6+ {[%clk 0:03:00]}  Kd7 {[%clk 0:01:38]} 17. d4 {[%clk 0:03:00]}  Ng4 {[%clk 0:01:35]} 18. Nc3 {[%clk 0:02:58]}  Bxh6 {[%clk 0:01:31]} 19. Qd2 {[%clk 0:02:56]}  Nxe3 {[%clk 0:01:15]} 20. Rxh6 {[%clk 0:02:43]}  Ng4+ {[%clk 0:00:53]} 21. Be2 {[%clk 0:02:43]}  Nxh6 {[%clk 0:00:51]} 22. Qxh6 {[%clk 0:02:44]}  Ref8 {[%clk 0:00:41]} 23. Qe3 {[%clk 0:02:43]}  Qf7 {[%clk 0:00:38]} 24. Nb1 {[%clk 0:02:39]}  Be4 {[%clk 0:00:27]} 25. Bg4+ {[%clk 0:02:30]}  Kd8 {[%clk 0:00:26]} 26. g3 {[%clk 0:02:17]}  h5 {[%clk 0:00:24]} 27. Be2 {[%clk 0:02:17]}  g5 {[%clk 0:00:22]} 28. Nd2 {[%clk 0:02:17]}  h4 {[%clk 0:00:22]} 29. O-O-O {[%clk 0:02:14]}  Bg2 {[%clk 0:00:17]} 30. gxh4 {[%clk 0:02:13]}  gxh4 {[%clk 0:00:18]} 31. Qh6 {[%clk 0:01:58]}  h3 {[%clk 0:00:17]} 32. Qxc6 {[%clk 0:01:59]}  h2 {[%clk 0:00:13]} 33. Bb5 {[%clk 0:01:58]}  Qe6 {[%clk 0:00:12]} 34. Qxe6 {[%clk 0:01:57]}  Bh3 {[%clk 0:00:07]} 35. Qxd5+ {[%clk 0:01:53]}  Kc8 {[%clk 0:00:06]} 36. Qa8# {[%clk 0:01:53]} 1-0


[Site "https://www.chess.com"]

[Event "Titled Tuesday Blitz April 25 Late 2023"]
[White "Schuster, Karsten"]
[Black "Adewumi, Tanitoluwa"]
[WhiteFideId "4611071"]
[BlackFideId "30966396"]
[WhiteElo "2294"]
[BlackElo "2283"]
[Result "1-0"]
[Round "11"]
[TimeControl "180+2"]
[Date "2023.04.25"]
[WhiteClock "0:00:49"]
[BlackClock "0:00:06"]

1. d4 {[%clk 0:03:00]}  Nf6 {[%clk 0:02:58]} 2. c4 {[%clk 0:03:01]}  e6 {[%clk 0:02:58]} 3. Nc3 {[%clk 0:03:01]}  Bb4 {[%clk 0:02:59]} 4. Qc2 {[%clk 0:03:01]}  O-O {[%clk 0:02:59]} 5. a3 {[%clk 0:03:01]}  Bxc3+ {[%clk 0:02:59]} 6. Qxc3 {[%clk 0:03:02]}  b6 {[%clk 0:03:00]} 7. Bg5 {[%clk 0:03:01]}  Bb7 {[%clk 0:03:00]} 8. e3 {[%clk 0:03:02]}  h6 {[%clk 0:02:58]} 9. Bh4 {[%clk 0:03:01]}  d6 {[%clk 0:02:56]} 10. f3 {[%clk 0:03:01]}  c5 {[%clk 0:02:53]} 11. Bd3 {[%clk 0:03:01]}  cxd4 {[%clk 0:02:51]} 12. exd4 {[%clk 0:03:00]}  Nbd7 {[%clk 0:02:51]} 13. Ne2 {[%clk 0:03:00]}  d5 {[%clk 0:02:52]} 14. Rc1 {[%clk 0:02:49]}  dxc4 {[%clk 0:02:50]} 15. Bxc4 {[%clk 0:02:49]}  Rc8 {[%clk 0:02:46]} 16. Qd2 {[%clk 0:02:49]}  Ne4 {[%clk 0:02:28]} 17. Bxd8 {[%clk 0:02:38]}  Nxd2 {[%clk 0:02:15]} 18. Kxd2 {[%clk 0:02:39]}  Rfxd8 {[%clk 0:02:15]} 19. Bb5 {[%clk 0:02:34]}  Nf6 {[%clk 0:01:59]} 20. Rxc8 {[%clk 0:02:31]}  Rxc8 {[%clk 0:02:00]} 21. Rc1 {[%clk 0:02:31]}  Rxc1 {[%clk 0:02:00]} 22. Nxc1 {[%clk 0:02:26]}  Kf8 {[%clk 0:01:59]} 23. Nd3 {[%clk 0:02:22]}  Ke7 {[%clk 0:01:58]} 24. Ne5 {[%clk 0:02:19]}  a6 {[%clk 0:01:52]} 25. Be2 {[%clk 0:02:17]}  Nd5 {[%clk 0:01:49]} 26. g3 {[%clk 0:02:17]}  f6 {[%clk 0:01:49]} 27. Nc4 {[%clk 0:02:16]}  Kd7 {[%clk 0:01:45]} 28. f4 {[%clk 0:02:16]}  Kc7 {[%clk 0:01:42]} 29. Bg4 {[%clk 0:02:11]}  f5 {[%clk 0:01:38]} 30. Bf3 {[%clk 0:02:06]}  Nf6 {[%clk 0:01:39]} 31. Bxb7 {[%clk 0:01:53]}  Kxb7 {[%clk 0:01:39]} 32. Ke3 {[%clk 0:01:52]}  Kc6 {[%clk 0:01:34]} 33. h3 {[%clk 0:01:47]}  b5 {[%clk 0:01:30]} 34. Nd2 {[%clk 0:01:32]}  Kd5 {[%clk 0:01:24]} 35. Kd3 {[%clk 0:01:31]}  Nh5 {[%clk 0:01:20]} 36. Nf1 {[%clk 0:01:31]}  g5 {[%clk 0:01:20]} 37. Ne3+ {[%clk 0:01:29]}  Kd6 {[%clk 0:01:19]} 38. fxg5 {[%clk 0:01:28]}  hxg5 {[%clk 0:01:20]} 39. h4 {[%clk 0:01:27]}  g4 {[%clk 0:01:06]} 40. Nf1 {[%clk 0:01:24]}  e5 {[%clk 0:01:04]} 41. dxe5+ {[%clk 0:01:23]}  Kxe5 {[%clk 0:01:05]} 42. Ke3 {[%clk 0:01:22]}  a5 {[%clk 0:00:59]} 43. b3 {[%clk 0:01:22]}  b4 {[%clk 0:00:52]} 44. a4 {[%clk 0:01:21]}  Kd5 {[%clk 0:00:45]} 45. Nd2 {[%clk 0:01:19]}  Nxg3 {[%clk 0:00:31]} 46. Kf4 {[%clk 0:01:20]}  Ne4 {[%clk 0:00:25]} 47. Nxe4 {[%clk 0:00:56]}  fxe4 {[%clk 0:00:20]} 48. h5 {[%clk 0:00:56]}  Kd4 {[%clk 0:00:01]} 49. h6 {[%clk 0:00:56]}  e3 {[%clk 0:00:01]} 50. h7 {[%clk 0:00:55]}  e2 {[%clk 0:00:02]} 51. h8=Q+ {[%clk 0:00:56]}  Kd3 {[%clk 0:00:03]} 52. Qd8+ {[%clk 0:00:54]}  Kc2 {[%clk 0:00:03]} 53. Qe7 {[%clk 0:00:52]}  Kd2 {[%clk 0:00:03]} 54. Qd6+ {[%clk 0:00:51]}  Kc2 {[%clk 0:00:03]} 55. Qe5 {[%clk 0:00:50]}  Kd2 {[%clk 0:00:04]} 56. Qe3+ {[%clk 0:00:50]}  Kd1 {[%clk 0:00:04]} 57. Qd3+ {[%clk 0:00:51]}  Ke1 {[%clk 0:00:04]} 58. Kxg4 {[%clk 0:00:51]}  Kf1 {[%clk 0:00:04]} 59. Qf3+ {[%clk 0:00:50]}  Kg1 {[%clk 0:00:05]} 60. Qxe2 {[%clk 0:00:49]}  Kh1 {[%clk 0:00:06]} 61. Kg3 {[%clk 0:00:49]} 1-0


[Site "https://www.chess.com"]

[Event "Titled Tuesday Blitz April 25 Late 2023"]
[White "Rodriguez Santiago, Jaime"]
[Black "Srinath, Rao S.V."]
[WhiteFideId "3100898"]
[BlackFideId "5028876"]
[WhiteElo "2025"]
[BlackElo "2196"]
[Result "1-0"]
[Round "11"]
[TimeControl "180+2"]
[Date "2023.04.25"]
[WhiteClock "0:00:13"]
[BlackClock "0:00:03"]

1. c4 {[%clk 0:03:00]}  Nf6 {[%clk 0:02:58]} 2. Nc3 {[%clk 0:03:01]}  g6 {[%clk 0:02:58]} 3. g3 {[%clk 0:03:01]}  Bg7 {[%clk 0:02:58]} 4. Bg2 {[%clk 0:03:01]}  O-O {[%clk 0:02:57]} 5. e4 {[%clk 0:03:01]}  d6 {[%clk 0:02:57]} 6. Nge2 {[%clk 0:03:01]}  c5 {[%clk 0:02:55]} 7. O-O {[%clk 0:03:01]}  Nc6 {[%clk 0:02:54]} 8. d3 {[%clk 0:03:01]}  Ne8 {[%clk 0:02:54]} 9. Be3 {[%clk 0:03:00]}  a6 {[%clk 0:02:49]} 10. a4 {[%clk 0:02:56]}  Nc7 {[%clk 0:02:48]} 11. d4 {[%clk 0:02:52]}  cxd4 {[%clk 0:02:38]} 12. Nxd4 {[%clk 0:02:50]}  Ne6 {[%clk 0:02:38]} 13. Nde2 {[%clk 0:02:49]}  Nc5 {[%clk 0:02:34]} 14. Rb1 {[%clk 0:02:28]}  a5 {[%clk 0:02:28]} 15. b3 {[%clk 0:02:11]}  Bg4 {[%clk 0:02:05]} 16. f3 {[%clk 0:02:04]}  Be6 {[%clk 0:02:02]} 17. Qd2 {[%clk 0:02:00]}  Nb4 {[%clk 0:01:50]} 18. Bh6 {[%clk 0:01:55]}  Qd7 {[%clk 0:01:39]} 19. Bxg7 {[%clk 0:01:52]}  Kxg7 {[%clk 0:01:38]} 20. Nf4 {[%clk 0:01:46]}  Kg8 {[%clk 0:01:24]} 21. Ncd5 {[%clk 0:01:19]}  Bxd5 {[%clk 0:01:20]} 22. Nxd5 {[%clk 0:01:02]}  Nxd5 {[%clk 0:01:18]} 23. Qxd5 {[%clk 0:01:00]}  e6 {[%clk 0:01:13]} 24. Qd2 {[%clk 0:00:57]}  Rfd8 {[%clk 0:01:11]} 25. Rfd1 {[%clk 0:00:53]}  Qc7 {[%clk 0:01:10]} 26. Qe3 {[%clk 0:00:47]}  Na6 {[%clk 0:00:59]} 27. h4 {[%clk 0:00:46]}  Nb4 {[%clk 0:00:58]} 28. Kh2 {[%clk 0:00:42]}  Qc5 {[%clk 0:00:57]} 29. Qf4 {[%clk 0:00:39]}  Qe5 {[%clk 0:00:53]} 30. Qh6 {[%clk 0:00:35]}  Qg7 {[%clk 0:00:51]} 31. Qe3 {[%clk 0:00:33]}  Qe5 {[%clk 0:00:37]} 32. Rd2 {[%clk 0:00:32]}  Qc5 {[%clk 0:00:36]} 33. Qh6 {[%clk 0:00:31]}  d5 {[%clk 0:00:33]} 34. exd5 {[%clk 0:00:29]}  exd5 {[%clk 0:00:32]} 35. Rbd1 {[%clk 0:00:29]}  d4 {[%clk 0:00:26]} 36. Qf4 {[%clk 0:00:21]}  Nc6 {[%clk 0:00:22]} 37. Rd3 {[%clk 0:00:19]}  Rd7 {[%clk 0:00:20]} 38. Qe4 {[%clk 0:00:18]}  Rad8 {[%clk 0:00:19]} 39. f4 {[%clk 0:00:18]}  Re7 {[%clk 0:00:18]} 40. Qf3 {[%clk 0:00:18]}  Nb4 {[%clk 0:00:19]} 41. R3d2 {[%clk 0:00:18]}  d3 {[%clk 0:00:19]} 42. Qg4 {[%clk 0:00:17]}  Qf5 {[%clk 0:00:17]} 43. Qxf5 {[%clk 0:00:17]}  gxf5 {[%clk 0:00:17]} 44. Bf1 {[%clk 0:00:18]}  Re3 {[%clk 0:00:17]} 45. Kg2 {[%clk 0:00:18]}  Rde8 {[%clk 0:00:13]} 46. Bxd3 {[%clk 0:00:16]}  Nxd3 {[%clk 0:00:11]} 47. Rxd3 {[%clk 0:00:16]}  Re2+ {[%clk 0:00:11]} 48. Kf3 {[%clk 0:00:14]}  Rb2 {[%clk 0:00:11]} 49. Rc3 {[%clk 0:00:14]}  Ree2 {[%clk 0:00:10]} 50. Rdd3 {[%clk 0:00:14]}  Rf2+ {[%clk 0:00:10]} 51. Ke3 {[%clk 0:00:14]}  Rbe2+ {[%clk 0:00:07]} 52. Kd4 {[%clk 0:00:14]}  Re4+ {[%clk 0:00:08]} 53. Kc5 {[%clk 0:00:14]}  Rh2 {[%clk 0:00:03]} 54. Kb5 {[%clk 0:00:13]} 1-0


[Site "https://www.chess.com"]

[Event "Titled Tuesday Blitz April 25 Late 2023"]
[White "Womacka, Mathias"]
[Black "Stanisz, Patryk"]
[WhiteFideId "4611390"]
[BlackFideId "1123106"]
[WhiteElo "2377"]
[BlackElo "2069"]
[Result "0-1"]
[Round "11"]
[TimeControl "180+2"]
[Date "2023.04.25"]
[WhiteClock "0:01:29"]
[BlackClock "0:00:25"]

1. e4 {[%clk 0:03:00]}  c5 {[%clk 0:02:59]} 2. Nf3 {[%clk 0:03:00]}  Nc6 {[%clk 0:03:00]} 3. d4 {[%clk 0:02:59]}  cxd4 {[%clk 0:03:00]} 4. Nxd4 {[%clk 0:02:59]}  Nf6 {[%clk 0:03:01]} 5. Nc3 {[%clk 0:02:59]}  e5 {[%clk 0:03:02]} 6. Ndb5 {[%clk 0:02:59]}  d6 {[%clk 0:03:02]} 7. Bg5 {[%clk 0:02:57]}  a6 {[%clk 0:03:03]} 8. Na3 {[%clk 0:02:57]}  b5 {[%clk 0:03:03]} 9. Nd5 {[%clk 0:02:58]}  Qa5+ {[%clk 0:03:03]} 10. Bd2 {[%clk 0:02:56]}  Qd8 {[%clk 0:03:04]} 11. Nxf6+ {[%clk 0:02:56]}  Qxf6 {[%clk 0:03:04]} 12. Bd3 {[%clk 0:02:56]}  Qg6 {[%clk 0:03:05]} 13. O-O {[%clk 0:02:55]}  Be7 {[%clk 0:02:51]} 14. c4 {[%clk 0:02:53]}  Nd4 {[%clk 0:02:33]} 15. cxb5 {[%clk 0:02:47]}  Bh3 {[%clk 0:02:32]} 16. g3 {[%clk 0:02:47]}  O-O {[%clk 0:02:12]} 17. Re1 {[%clk 0:02:36]}  Bg4 {[%clk 0:02:07]} 18. Qb1 {[%clk 0:02:13]}  Nf3+ {[%clk 0:01:41]} 19. Kg2 {[%clk 0:02:13]}  Nxd2 {[%clk 0:01:34]} 20. Qc2 {[%clk 0:02:12]}  Nf3 {[%clk 0:01:25]} 21. Re3 {[%clk 0:02:12]}  Qh5 {[%clk 0:01:16]} 22. h4 {[%clk 0:02:05]}  Nd4 {[%clk 0:01:16]} 23. Qc7 {[%clk 0:02:04]}  Bf3+ {[%clk 0:01:08]} 24. Kg1 {[%clk 0:02:04]}  Bxh4 {[%clk 0:01:05]} 25. gxh4 {[%clk 0:01:55]}  Qg4+ {[%clk 0:00:46]} 26. Kf1 {[%clk 0:01:54]}  Qg2+ {[%clk 0:00:47]} 27. Ke1 {[%clk 0:01:54]}  Rac8 {[%clk 0:00:37]} 28. Qxd6 {[%clk 0:01:53]}  Qg1+ {[%clk 0:00:36]} 29. Bf1 {[%clk 0:01:52]}  Bg2 {[%clk 0:00:30]} 30. Kd2 {[%clk 0:01:46]}  Bxf1 {[%clk 0:00:27]} 31. Qxe5 {[%clk 0:01:29]}  Qxf2+ {[%clk 0:00:25]} 0-1


[Site "https://www.chess.com"]